[Event "ESP-ch Teams Primera 2022"]
[Site "Sanxenxo Pontevedra"]
[Date "2022.09.18"]
[Round "2.1"]
[White "Bacrot, Etienne"]
[Black "Vallejo Pons, Francisco"]
[Result "1/2-1/2"]
[ECO "B48"]
[WhiteElo "2647"]
[BlackElo "2711"]
[Annotator "ChessBase"]
[PlyCount "61"]
[EventDate "2022.09.17"]
[EventType "team-tourn"]
[EventCountry "ESP"]
[SourceTitle "playchess.com"]
[Source "ChessBase"]
[SourceQuality "1"]
[TimeControl "5400+30"]

1. e4 {[%emt 0:00:31]} c5 {[%emt 0:00:09]} 2. Nf3 {[%emt 0:00:05]} e6 {[%emt 0:00:06]} 3. d4 {[%emt 0:00:04]} cxd4 {[%emt 0:00:12]} 4. Nxd4 {[%emt 0:00:04]} Nc6 {[%emt 0:00:13]} 5. Nc3 {[%emt 0:00:14]} Qc7 {[%emt 0:00:31]} 6. Be3 {[%emt 0:00:41]} a6 {[%emt 0:00:57]} 7. Nxc6 {[%emt 0:01:09]} bxc6 {[%emt 0:12:01]} 8. Qf3 {[%emt 0:01:15]} Nf6 {[%emt 0:07:52]} 9. Qg3 {[%emt 0:02:04]} Qb8 {[%emt 0:07:54]} 10. Bd4 {[%emt 0:23:46]} c5 {[%emt 0:05:11]} 11. Be5 {[%emt 0:01:41]} d6 {[%emt 0:01:30]} 12. Bxf6 {[%emt 0:01:00]} gxf6 {[%emt 0:00:44]} 13. Be2 {[%emt 0:07:35]} h5 {[%emt 0:07:28]} 14. h4 {[%emt 0:01:32]} d5 {[%emt 0:12:12]} 15. exd5 {[%emt 0:06:05]} Qxg3 {[%emt 0:01:39]} 16. fxg3 {[%emt 0:01:34]} Rb8 {[%emt 0:02:34]} 17. dxe6 {[%emt 0:20:49]} fxe6 {[%emt 0:03:37]} 18. O-O-O {[%emt 0:00:44]} Rb4 {[%emt 0:07:42]} 19. b3 {[%emt 0:02:46]} Rd4 {[%emt 0:03:50]} 20. Rhe1 {[%emt 0:07:07]} Kf7 {[%emt 0:10:56]} 21. Na4 {[%emt 0:01:37]} Bd6 {[%emt 0:06:28]} 22. c3 {[%emt 0:00:24]} Rxd1+ {[%emt 0:00:55]} 23. Rxd1 {[%emt 0:00:02]} Ke7 {[%emt 0:01:41]} 24. Bf3 {[%emt 0:09:16]} f5 {[%emt 0:01:23]} 25. Nb6 {[%emt 0:01:49]} Bxg3 {[%emt 0:00:57]} 26. Kc2 {[%emt 0:00:55]} Bxh4 {[%emt 0:02:53]} 27. Rh1 {[%emt 0:00:32]} Bf6 {[%emt 0:00:28]} 28. Rxh5 {[%emt 0:00:25]} Rxh5 {[%emt 0:00:49]} 29. Nxc8+ {[%emt 0:00:51]} Kd8 {[%emt 0:00:02]} 30. Bxh5 {[%emt 0:00:06]} Kxc8 {[%emt 0:00:02]} 31. Kd3 {[%emt 0:00:36]} 1/2-1/2

[Event "ESP-ch Teams Primera 2022"]
[Site "Sanxenxo Pontevedra"]
[Date "2022.09.18"]
[Round "2.2"]
[White "Narayanan.S.L"]
[Black "Naiditsch, Arkadij"]
[Result "0-1"]
[ECO "E51"]
[WhiteElo "2657"]
[BlackElo "2666"]
[Annotator "ChessBase"]
[PlyCount "76"]
[EventDate "2022.09.17"]
[EventType "team-tourn"]
[EventCountry "ESP"]
[SourceTitle "playchess.com"]
[Source "ChessBase"]
[SourceQuality "1"]
[TimeControl "5400+30"]

1. d4 Nf6 2. c4 e6 3. Nc3 Bb4 4. e3 O-O 5. Nf3 d5 6. Bd2 b6 7. cxd5 exd5 8. Rc1 Re8 9. Ne5 Bb7 10. Bd3 Nbd7 11. f4 c5 12. O-O a5 13. Be1 Bxc3 14. bxc3 Ba6 15. Bh4 Bxd3 16. Qxd3 c4 17. Qb1 Qc7 18. Qb5 a4 19. Rb1 Ra5 20. Qc6 Qxc6 21. Nxc6 Ra6 22. Ne5 Nxe5 23. dxe5 Ne4 24. Rfc1 f6 25. Rb5 Rd8 26. f5 Kf8 27. e6 g6 28. g4 h5 29. h3 hxg4 30. hxg4 gxf5 31. gxf5 Ke7 32. Kg2 Rg8+ 33. Kf3 Kd6 34. Be1 Kc6 35. Rb4 b5 36. Bh4 Ra7 37. Rcb1 Nd2+ 38. Kf4 Rag7 0-1

[Event "ESP-ch Teams Primera 2022"]
[Site "Sanxenxo Pontevedra"]
[Date "2022.09.18"]
[Round "2.3"]
[White "Ponomariov, Ruslan"]
[Black "Fier, Alexandr"]
[Result "1-0"]
[ECO "B24"]
[WhiteElo "2640"]
[BlackElo "2583"]
[Annotator "ChessBase"]
[PlyCount "91"]
[EventDate "2022.09.17"]
[EventType "team-tourn"]
[EventCountry "ESP"]
[SourceTitle "playchess.com"]
[Source "ChessBase"]
[SourceQuality "1"]
[TimeControl "5400+30"]

1. e4 {[%emt 0:00:02]} c5 {[%emt 0:00:04]} 2. Nc3 {[%emt 0:00:06]} Nc6 {[%emt 0:00:13]} 3. Bb5 {[%emt 0:00:07]} Nd4 {[%emt 0:00:30]} 4. Nf3 {[%emt 0:00:11]} a6 {[%emt 0:02:17]} 5. Bd3 {[%emt 0:00:39]} Nc6 {[%emt 0:00:17]} 6. O-O {[%emt 0:01:28]} d6 {[%emt 0:00:14]} 7. Bc4 {[%emt 0:09:10]} Nf6 {[%emt 0:02:04]} 8. d4 {[%emt 0:00:33]} Bg4 {[%emt 0:04:54]} 9. dxc5 {[%emt 0:17:05]} e6 {[%emt 0:00:12]} 10. cxd6 {[%emt 0:09:59]} Bxd6 {[%emt 0:00:12]} 11. h3 {[%emt 0:00:19]} Bh5 {[%emt 0:03:24]} 12. Be3 {[%emt 0:01:59]} Qc7 {[%emt 0:09:32]} 13. Be2 {[%emt 0:01:16]} Rd8 {[%emt 0:04:25]} 14. Nd2 {[%emt 0:01:51]} Bxe2 {[%emt 0:14:04]} 15. Qxe2 {[%emt 0:00:16]} Be5 {[%emt 0:00:04]} 16. Nc4 {[%emt 0:04:19]} Bd4 {[%emt 0:06:14]} 17. Rad1 {[%emt 0:07:07]} b5 {[%emt 0:07:34]} 18. e5 {[%emt 0:02:16]} Nxe5 {[%emt 0:02:31]} 19. Bxd4 {[%emt 0:02:32]} Nxc4 {[%emt 0:00:11]} 20. b3 {[%emt 0:00:15]} Nb6 {[%emt 0:04:52]} 21. Be5 {[%emt 0:01:21]} Qc6 {[%emt 0:07:26]} 22. Rxd8+ {[%emt 0:01:17]} Kxd8 {[%emt 0:00:02]} 23. a4 {[%emt 0:04:55]} bxa4 {[%emt 0:03:32]} 24. Qxa6 {[%emt 0:00:47]} Nfd7 {[%emt 0:03:40]} 25. Rd1 {[%emt 0:04:58]} Ke7 {[%emt 0:02:15]} 26. Bd6+ {[%emt 0:01:23]} Kf6 {[%emt 0:02:43]} 27. Qd3 {[%emt 0:01:07]} g6 {[%emt 0:00:48]} 28. Nxa4 {[%emt 0:04:33]} Nxa4 {[%emt 0:00:30]} 29. bxa4 {[%emt 0:00:08]} Rc8 {[%emt 0:03:45]} 30. Ba3 {[%emt 0:04:36]} Rc7 {[%emt 0:00:04]} 31. a5 {[%emt 0:02:07]} Kg7 {[%emt 0:01:24]} 32. a6 {[%emt 0:01:36]} e5 {[%emt 0:00:27]} 33. Bc1 {[%emt 0:09:36]} Nc5 {[%emt 0:03:49]} 34. Qe3 {[%emt 0:01:01]} Nxa6 {[%emt 0:00:03]} 35. Qh6+ {[%emt 0:01:05]} Kf6 {[%emt 0:00:03]} 36. Bg5+ {[%emt 0:00:46]} Ke6 {[%emt 0:00:50]} 37. Qg7 {[%emt 0:00:20]} Kf5 {[%emt 0:00:04]} 38. Bd8 {[%emt 0:00:09]} h5 {[%emt 0:02:00]} 39. Bxc7 {[%emt 0:01:37]} Qxc7 {[%emt 0:00:03]} 40. Rd3 {[%emt 0:00:17]} Ke6 {[%emt 0:00:18]} 41. Qf8 {[%emt 0:00:41]} Nc5 {[%emt 0:00:46]} 42. Rc3 {[%emt 0:01:09]} Kd5 {[%emt 0:00:04]} 43. Qa8+ {[%emt 0:01:49]} Kd4 {[%emt 0:00:32]} 44. Qa3 {[%emt 0:00:56]} Qb6 {[%emt 0:00:40]} 45. Rxc5 {[%emt 0:00:27]} Qxc5 {[%emt 0:00:04]} 46. Qd3# {[%emt 0:00:03]} 1-0

[Event "ESP-ch Teams Primera 2022"]
[Site "Sanxenxo Pontevedra"]
[Date "2022.09.18"]
[Round "2.4"]
[White "Adla, Diego"]
[Black "Franco Alonso, Alejandro"]
[Result "0-1"]
[ECO "A28"]
[WhiteElo "2393"]
[BlackElo "2432"]
[Annotator "ChessBase"]
[PlyCount "120"]
[EventDate "2022.09.17"]
[EventType "team-tourn"]
[EventCountry "ESP"]
[SourceTitle "playchess.com"]
[Source "ChessBase"]
[SourceQuality "1"]
[TimeControl "5400+30"]

1. c4 e5 2. Nc3 Nf6 3. Nf3 Nc6 4. e4 Bb4 5. d3 d6 6. Be2 Bc5 7. Nd2 Ng4 8. Bxg4 Qh4 9. g3 Qxg4 10. Qxg4 Bxg4 11. h3 Be6 12. Nb3 O-O-O 13. Ke2 f5 14. Be3 b6 15. f3 Rhf8 16. Nxc5 dxc5 17. g4 fxe4 18. fxe4 Nd4+ 19. Bxd4 cxd4 20. Nb1 h5 21. gxh5 Bf7 22. Nd2 Bxh5+ 23. Ke1 Rf4 24. Rg1 Rdf8 25. Rg5 g6 26. Rg2 Rh4 27. Rg3 g5 28. Nf1 Rf3 29. Rxf3 Bxf3 30. Rc1 Rxh3 31. Rc2 Kd7 32. Rh2 Rxh2 33. Nxh2 Bh5 34. Nf1 Ke7 35. Ng3 Bg4 36. Kd2 Kf6 37. Ke1 Kg6 38. Kf2 Bd1 39. Nf5 Bc2 40. Ke2 g4 41. Ne7+ Kg5 42. Nc6 Kf4 43. Nb4 Bb1 44. Nd5+ Kg3 45. Nxc7 Kh2 46. Ne6 g3 47. Ng5 g2 48. Nf3+ Kg3 49. Ng1 Bxa2 50. b4 a5 51. c5 bxc5 52. bxa5 Be6 53. a6 Bc8 54. a7 Bb7 55. Ke1 Ba8 56. Ke2 c4 57. dxc4 Bxe4 58. Ke1 Ba8 59. Ke2 e4 60. Ke1 d3 0-1

[Event "ESP-ch Teams Primera 2022"]
[Site "Sanxenxo Pontevedra"]
[Date "2022.09.18"]
[Round "2.5"]
[White "Gonzalez De La Torre, Santiago"]
[Black "Glavina, Pablo"]
[Result "1/2-1/2"]
[ECO "C78"]
[WhiteElo "2439"]
[BlackElo "2400"]
[Annotator "ChessBase"]
[PlyCount "117"]
[EventDate "2022.09.17"]
[EventType "team-tourn"]
[EventCountry "ESP"]
[SourceTitle "playchess.com"]
[Source "ChessBase"]
[SourceQuality "1"]
[TimeControl "5400+30"]

1. e4 {[%emt 0:00:09]} e5 {[%emt 0:00:05]} 2. Nf3 {[%emt 0:00:05]} Nc6 {[%emt 0:00:04]} 3. Bb5 {[%emt 0:00:04]} a6 {[%emt 0:00:04]} 4. Ba4 {[%emt 0:00:05]} Nf6 {[%emt 0:00:04]} 5. O-O {[%emt 0:00:06]} b5 {[%emt 0:00:07]} 6. Bb3 {[%emt 0:00:09]} Bc5 {[%emt 0:00:05]} 7. c3 {[%emt 0:00:30]} d6 {[%emt 0:00:04]} 8. a4 {[%emt 0:00:24]} Rb8 {[%emt 0:00:12]} 9. d4 {[%emt 0:01:34]} Bb6 {[%emt 0:00:07]} 10. Na3 {[%emt 0:00:12]} O-O {[%emt 0:01:51]} 11. axb5 {[%emt 0:09:20]} axb5 {[%emt 0:00:08]} 12. Nxb5 {[%emt 0:00:15]} Bg4 {[%emt 0:00:08]} 13. Be3 {[%emt 0:00:19]} Qd7 {[%emt 0:07:06]} 14. h3 {[%emt 0:11:34]} Bh5 {[%emt 0:00:40]} 15. Bc2 {[%emt 0:03:23]} exd4 {[%emt 0:09:38]} 16. Nbxd4 {[%emt 0:13:03]} Ne5 {[%emt 0:00:18]} 17. Kh2 {[%emt 0:02:14]} Bxd4 {[%emt 0:07:28]} 18. cxd4 {[%emt 0:00:38]} Nxf3+ {[%emt 0:00:06]} 19. gxf3 {[%emt 0:00:05]} Rxb2 {[%emt 0:00:05]} 20. Rg1 {[%emt 0:03:02]} Kh8 {[%emt 0:03:24]} 21. d5 {[%emt 0:13:49]} Qe7 {[%emt 0:13:45]} 22. Bd4 {[%emt 0:07:13]} Rbb8 {[%emt 0:00:03]} 23. Qd2 {[%emt 0:02:02]} Bg6 {[%emt 0:05:17]} 24. Rae1 {[%emt 0:00:20]} Nd7 {[%emt 0:01:21]} 25. f4 {[%emt 0:00:16]} f6 {[%emt 0:00:10]} 26. Rg3 {[%emt 0:04:15]} Qf7 {[%emt 0:02:20]} 27. Reg1 {[%emt 0:01:19]} Bh5 {[%emt 0:02:34]} 28. Qc3 {[%emt 0:05:30]} Rg8 {[%emt 0:01:19]} 29. Qd3 {[%emt 0:04:24]} Nf8 {[%emt 0:00:45]} 30. e5 {[%emt 0:04:57]} fxe5 {[%emt 0:02:18]} 31. fxe5 {[%emt 0:00:04]} dxe5 {[%emt 0:00:09]} 32. Bxe5 {[%emt 0:00:07]} Bg6 {[%emt 0:03:08]} 33. Qd4 {[%emt 0:01:28]} Rb6 {[%emt 0:03:24]} 34. f4 {[%emt 0:12:08]} Nd7 {[%emt 0:01:44]} 35. Bxg6 {[%emt 0:01:21]} Rxg6 {[%emt 0:00:10]} 36. Rxg6 {[%emt 0:00:14]} hxg6 {[%emt 0:00:06]} 37. Bxc7 {[%emt 0:00:30]} Rc8 {[%emt 0:01:25]} 38. Be5 {[%emt 0:00:34]} Rc2+ {[%emt 0:00:07]} 39. Rg2 {[%emt 0:00:10]} Rxg2+ {[%emt 0:01:44]} 40. Kxg2 {[%emt 0:00:06]} Kh7 {[%emt 0:00:27]} 41. Kg3 {[%emt 0:00:18]} Kg8 {[%emt 0:02:35]} 42. h4 {[%emt 0:00:45]} Kh7 {[%emt 0:00:17]} 43. Kf3 {[%emt 0:01:00]} Qe7 {[%emt 0:00:55]} 44. Kg3 {[%emt 0:00:53]} Qf7 {[%emt 0:00:03]} 45. d6 {[%emt 0:00:14]} Qb3+ {[%emt 0:02:05]} 46. Kg2 {[%emt 0:00:22]} Qa2+ {[%emt 0:02:05]} 47. Kf3 {[%emt 0:00:16]} Qb3+ {[%emt 0:00:35]} 48. Ke2 {[%emt 0:00:33]} Qc2+ {[%emt 0:01:03]} 49. Ke3 {[%emt 0:00:09]} Qb3+ {[%emt 0:00:52]} 50. Kd2 {[%emt 0:00:14]} Qa2+ {[%emt 0:01:19]} 51. Kc3 {[%emt 0:00:17]} Qa3+ {[%emt 0:00:13]} 52. Kc4 {[%emt 0:00:37]} Qa4+ {[%emt 0:00:04]} 53. Kd3 {[%emt 0:01:02]} Qb3+ {[%emt 0:00:20]} 54. Qc3 {[%emt 0:01:10]} Qd5+ {[%emt 0:01:13]} 55. Ke3 {[%emt 0:00:53]} Nc5 {[%emt 0:01:35]} 56. Qd4 {[%emt 0:00:07]} Qb3+ {[%emt 0:00:08]} 57. Qc3 {[%emt 0:00:05]} Qd5 {[%emt 0:00:04]} 58. Qd4 {[%emt 0:00:04]} Qb3+ {[%emt 0:00:03]} 59. Qc3 {[%emt 0:00:07]} 1/2-1/2

[Event "ESP-ch Teams Primera 2022"]
[Site "Sanxenxo Pontevedra"]
[Date "2022.09.18"]
[Round "2.6"]
[White "Vega Gutierrez, Sabrina"]
[Black "Buiza Prieto, Eihartze"]
[Result "1-0"]
[ECO "C95"]
[WhiteElo "2395"]
[BlackElo "2080"]
[Annotator "ChessBase"]
[PlyCount "87"]
[EventDate "2022.09.17"]
[EventType "team-tourn"]
[EventCountry "ESP"]
[SourceTitle "playchess.com"]
[Source "ChessBase"]
[SourceQuality "1"]
[TimeControl "5400+30"]

1. e4 e5 2. Nf3 Nc6 3. Bb5 a6 4. Ba4 Nf6 5. O-O Be7 6. Re1 b5 7. Bb3 d6 8. c3 O-O 9. h3 Nb8 10. d4 Nbd7 11. c4 Bb7 12. Nc3 bxc4 13. Bxc4 c6 14. Bf1 Re8 15. Qc2 exd4 16. Nxd4 Bf8 17. Bg5 d5 18. Nf5 h6 19. Bf4 Nxe4 20. Nxe4 dxe4 21. Rad1 Qf6 22. Rxd7 Bc8 23. Rc7 Qxf5 24. Bg3 c5 25. Bc4 Be6 26. Qxe4 Qxe4 27. Rxe4 Bxc4 28. Rxc4 Re2 29. Rb7 Rd8 30. Ra4 Rdd2 31. Rxa6 Rxb2 32. Rxb2 Rxb2 33. Ra8 Rb1+ 34. Kh2 Rd1 35. a4 f6 36. a5 Kf7 37. a6 Ra1 38. Bc7 c4 39. Bb6 c3 40. a7 Bd6+ 41. g3 c2 42. Rc8 Be7 43. Rxc2 Bd8 44. Bd4 1-0

[Event "ESP-ch Teams Primera 2022"]
[Site "Sanxenxo Pontevedra"]
[Date "2022.09.18"]
[Round "2.7"]
[White "Espinosa Aranda, Angel"]
[Black "Vazquez Igarza, Renier"]
[Result "1/2-1/2"]
[ECO "B22"]
[WhiteElo "2428"]
[BlackElo "2535"]
[Annotator "ChessBase"]
[PlyCount "75"]
[EventDate "2022.09.17"]
[EventType "team-tourn"]
[EventCountry "ESP"]
[SourceTitle "playchess.com"]
[Source "ChessBase"]
[SourceQuality "1"]
[TimeControl "5400+30"]

1. e4 {[%emt 0:00:04]} c5 {[%emt 0:04:10]} 2. c3 {[%emt 0:00:36]} Nf6 {[%emt 0:00:06]} 3. e5 {[%emt 0:00:33]} Nd5 {[%emt 0:00:03]} 4. Nf3 {[%emt 0:00:36]} Nc6 {[%emt 0:00:06]} 5. d4 {[%emt 0:01:53]} cxd4 {[%emt 0:00:08]} 6. Bc4 {[%emt 0:00:54]} Nb6 {[%emt 0:00:36]} 7. Bb3 {[%emt 0:00:11]} d5 {[%emt 0:00:07]} 8. exd6 {[%emt 0:02:48]} Qxd6 {[%emt 0:00:56]} 9. O-O {[%emt 0:00:30]} Be6 {[%emt 0:00:06]} 10. Nxd4 {[%emt 0:05:28]} Nxd4 {[%emt 0:00:33]} 11. cxd4 {[%emt 0:00:11]} Bxb3 {[%emt 0:06:21]} 12. Qxb3 {[%emt 0:00:10]} e6 {[%emt 0:01:18]} 13. Nc3 {[%emt 0:02:03]} Be7 {[%emt 0:06:46]} 14. d5 {[%emt 0:04:26]} Nxd5 {[%emt 0:02:57]} 15. Rd1 {[%emt 0:00:43]} O-O {[%emt 0:05:19]} 16. Nxd5 {[%emt 0:06:04]} exd5 {[%emt 0:00:51]} 17. Rxd5 {[%emt 0:00:15]} Qe6 {[%emt 0:05:06]} 18. Be3 {[%emt 0:01:12]} b6 {[%emt 0:00:45]} 19. Rad1 {[%emt 0:01:53]} Rad8 {[%emt 0:03:07]} 20. Rxd8 {[%emt 0:13:06]} Rxd8 {[%emt 0:00:08]} 21. Rxd8+ {[%emt 0:00:28]} Bxd8 {[%emt 0:00:02]} 22. Qxe6 {[%emt 0:00:21]} fxe6 {[%emt 0:00:07]} 23. Kf1 {[%emt 0:00:13]} a6 {[%emt 0:01:01]} 24. Ke2 {[%emt 0:02:31]} Kf7 {[%emt 0:00:55]} 25. Kd3 {[%emt 0:01:44]} Ke8 {[%emt 0:00:49]} 26. Ke4 {[%emt 0:06:46]} b5 {[%emt 0:03:18]} 27. b3 {[%emt 0:04:44]} Be7 {[%emt 0:02:49]} 28. h3 {[%emt 0:02:29]} h5 {[%emt 0:01:49]} 29. g4 {[%emt 0:03:42]} hxg4 {[%emt 0:00:07]} 30. hxg4 {[%emt 0:00:06]} Bd6 {[%emt 0:08:25]} 31. f4 {[%emt 0:03:31]} g6 {[%emt 0:04:24]} 32. Bd4 {[%emt 0:03:11]} Bc7 {[%emt 0:01:21]} 33. Be5 {[%emt 0:01:30]} Bd8 {[%emt 0:01:06]} 34. Bb8 {[%emt 0:07:35]} Bf6 {[%emt 0:01:04]} 35. Ba7 {[%emt 0:03:48]} Bc3 {[%emt 0:02:56]} 36. Bd4 {[%emt 0:01:29]} Bb4 {[%emt 0:00:42]} 37. Ke5 {[%emt 0:04:46]} Ke7 {[%emt 0:00:25]} 38. Ke4 1/2-1/2

[Event "ESP-ch Teams Primera 2022"]
[Site "Sanxenxo Pontevedra"]
[Date "2022.09.18"]
[Round "2.8"]
[White "Pulvett Marin, Daniel Eduardo"]
[Black "Rubio Mejia, Luis Ignacio"]
[Result "1-0"]
[ECO "E10"]
[WhiteElo "2497"]
[BlackElo "2399"]
[Annotator "ChessBase"]
[PlyCount "97"]
[EventDate "2022.09.17"]
[EventType "team-tourn"]
[EventCountry "ESP"]
[SourceTitle "playchess.com"]
[Source "ChessBase"]
[SourceQuality "1"]
[TimeControl "5400+30"]

1. d4 Nf6 2. c4 e6 3. Nf3 d5 4. g3 Bb4+ 5. Bd2 Bd6 6. Nc3 c6 7. Qc2 Bc7 8. e4 dxc4 9. e5 Nd5 10. Bxc4 h6 11. Ne4 Nd7 12. Be2 Qe7 13. O-O O-O 14. Rfe1 Rd8 15. Rac1 Nf8 16. Kh1 f5 17. exf6 Nxf6 18. b4 Nxe4 19. Qxe4 Bd7 20. Qg4 Qf6 21. Bc4 Be8 22. Bc3 Qg6 23. Qh3 Qf5 24. Qg2 Bf7 25. Ne5 Bxe5 26. Rxe5 Qg6 27. Rce1 Qc2 28. R5e3 Qg6 29. Bd3 Qg5 30. Re5 Qe7 31. Bc4 Qf6 32. f4 Rd5 33. Bxd5 cxd5 34. f5 exf5 35. Qf3 f4 36. gxf4 Ng6 37. f5 Nxe5 38. dxe5 Qc6 39. Bd4 Qc4 40. Qf4 Bh5 41. e6 Qd3 42. Re3 Qd1+ 43. Kg2 Rc8 44. Rg3 g5 45. Rxg5+ hxg5 46. Qxg5+ Kf8 47. Qg7+ Ke8 48. Qd7+ Kf8 49. e7+ 1-0

[Event "ESP-ch Teams Primera 2022"]
[Site "Sanxenxo Pontevedra"]
[Date "2022.09.18"]
[Round "2.9"]
[White "Almagro Llamas, Pablo"]
[Black "Alonso Garcia, Aaron"]
[Result "1/2-1/2"]
[ECO "E16"]
[WhiteElo "2407"]
[BlackElo "2427"]
[Annotator "ChessBase"]
[PlyCount "61"]
[EventDate "2022.09.17"]
[EventType "team-tourn"]
[EventCountry "ESP"]
[SourceTitle "playchess.com"]
[Source "ChessBase"]
[SourceQuality "1"]
[TimeControl "5400+30"]

1. d4 {[%emt 0:00:04]} Nf6 {[%emt 0:03:19]} 2. c4 {[%emt 0:00:24]} e6 {[%emt 0:00:12]} 3. Nf3 {[%emt 0:00:15]} Bb4+ {[%emt 0:00:03]} 4. Bd2 {[%emt 0:00:17]} Qe7 {[%emt 0:00:02]} 5. g3 {[%emt 0:00:38]} Bxd2+ {[%emt 0:00:06]} 6. Qxd2 {[%emt 0:01:01]} Nc6 {[%emt 0:00:02]} 7. Nc3 {[%emt 0:00:58]} d5 {[%emt 0:00:03]} 8. cxd5 {[%emt 0:02:37]} exd5 {[%emt 0:00:01]} 9. Bg2 {[%emt 0:00:35]} O-O {[%emt 0:00:04]} 10. O-O {[%emt 0:00:27]} h6 {[%emt 0:00:04]} 11. Rac1 {[%emt 0:02:06]} Re8 {[%emt 0:00:16]} 12. Ne1 {[%emt 0:04:38]} Bg4 {[%emt 0:23:28]} 13. Nc2 {[%emt 0:45:23]} Qe6 {[%emt 0:13:19]} 14. Ne3 {[%emt 0:05:33]} Bh3 {[%emt 0:06:16]} 15. Ncxd5 {[%emt 0:11:00]} Bxg2 {[%emt 0:07:49]} 16. Nxf6+ {[%emt 0:00:37]} Qxf6 {[%emt 0:00:02]} 17. Kxg2 {[%emt 0:00:18]} Nxd4 18. Rc3 c6 19. Rxc6 {[%emt 0:03:54]} Rad8 {[%emt 0:03:36]} 20. Rc3 {[%emt 0:01:48]} Nf5 {[%emt 0:06:24]} 21. Qc1 {[%emt 0:07:48]} Nxe3+ {[%emt 0:00:54]} 22. Rxe3 {[%emt 0:00:54]} Rxe3 {[%emt 0:00:21]} 23. Qxe3 {[%emt 0:00:15]} Qxb2 {[%emt 0:01:22]} 24. Qxa7 {[%emt 0:00:37]} Qxe2 {[%emt 0:04:30]} 25. Qxb7 {[%emt 0:00:41]} Qxa2 {[%emt 0:00:03]} 26. h4 {[%emt 0:00:27]} Qd5+ {[%emt 0:00:10]} 27. Qxd5 {[%emt 0:00:08]} Rxd5 {[%emt 0:00:02]} 28. Re1 {[%emt 0:00:11]} h5 {[%emt 0:00:03]} 29. Re3 {[%emt 0:00:08]} g6 {[%emt 0:00:02]} 30. Re2 {[%emt 0:00:08]} Kg7 {[%emt 0:00:01]} 31. Re3 {[%emt 0:00:09]} 1/2-1/2

[Event "ESP-ch Teams Primera 2022"]
[Site "Sanxenxo Pontevedra"]
[Date "2022.09.18"]
[Round "2.10"]
[White "Martin Duque, Jesus"]
[Black "Garcia Cuenca, Victor"]
[Result "1-0"]
[ECO "A06"]
[WhiteElo "2378"]
[BlackElo "2369"]
[Annotator "ChessBase"]
[PlyCount "101"]
[EventDate "2022.09.17"]
[EventType "team-tourn"]
[EventCountry "ESP"]
[SourceTitle "playchess.com"]
[Source "ChessBase"]
[SourceQuality "1"]
[TimeControl "5400+30"]

1. Nf3 d5 2. e3 Nf6 3. c4 e6 4. b3 Be7 5. Bb2 O-O 6. Nc3 c5 7. cxd5 Nxd5 8. Nxd5 exd5 9. Be2 Nc6 10. d4 cxd4 11. Nxd4 Qa5+ 12. Kf1 Nxd4 13. Bxd4 Bd7 14. Bd3 Rac8 15. a3 Bb5 16. g3 Rc6 17. Kg2 Bxd3 18. Qxd3 Rfc8 19. Rhd1 a6 20. Qf5 Rd8 21. Rdc1 Qc7 22. Qg4 Bf8 23. Rd1 Qd7 24. Qxd7 Rxd7 25. b4 f6 26. Rd3 Kf7 27. Rad1 Ke6 28. g4 g6 29. Ba1 Rc4 30. Kf3 b5 31. h4 h5 32. gxh5 gxh5 33. Rd4 Be7 34. Rg1 Bd6 35. Rg6 Be5 36. Rxc4 dxc4 37. Bxe5 Kxe5 38. Rg8 Rd3 39. Rh8 Rxa3 40. Rxh5+ Ke6 41. Rc5 Rb3 42. h5 Rxb4 43. Rc6+ Kf7 44. Rxa6 Rb2 45. Ra7+ Kg8 46. Rc7 Kh8 47. Kg3 Rb1 48. Kg4 Rg1+ 49. Kf5 Rg5+ 50. Kxf6 Rxh5 51. Kg6 1-0

[Event "ESP-ch Teams Primera 2022"]
[Site "Sanxenxo Pontevedra"]
[Date "2022.09.18"]
[Round "2.11"]
[White "Guadamuro Torrente, Anabel"]
[Black "Suarez Uriel, Adrian"]
[Result "1/2-1/2"]
[ECO "B07"]
[WhiteElo "2102"]
[BlackElo "2375"]
[Annotator "ChessBase"]
[PlyCount "131"]
[EventDate "2022.09.17"]
[EventType "team-tourn"]
[EventCountry "ESP"]
[SourceTitle "playchess.com"]
[Source "ChessBase"]
[SourceQuality "1"]
[TimeControl "5400+30"]

1. e4 d6 2. d4 Nf6 3. Nc3 e5 4. dxe5 dxe5 5. Qxd8+ Kxd8 6. Bg5 Be6 7. O-O-O+ Nbd7 8. f4 exf4 9. Nge2 h6 10. Bxf6+ gxf6 11. Nxf4 Bd6 12. Nxe6+ fxe6 13. Nb5 Bf4+ 14. Kb1 Ke7 15. g3 Be5 16. Bg2 Rad8 17. Nd4 Bxd4 18. Rxd4 Ne5 19. Rxd8 Rxd8 20. Kc1 b6 21. b3 c5 22. Rf1 h5 23. Rf4 Ng6 24. Rf2 h4 25. gxh4 Rh8 26. Bf1 Rxh4 27. Rg2 Ne5 28. Rg7+ Nf7 29. h3 Rxe4 30. Bd3 Rh4 31. Bg6 Rxh3 32. Rxf7+ Kd6 33. Rxf6 Rh6 34. Rf7 Rxg6 35. Rxa7 e5 36. Kd2 Kd5 37. Rd7+ Ke4 38. a4 Rf6 39. Ke2 Rh6 40. Kd2 Rg6 41. Rd8 Rf6 42. Ke2 Kf4 43. Rg8 e4 44. Rh8 Rg6 45. Rf8+ Ke5 46. Ke3 Rg3+ 47. Kd2 Rg2+ 48. Kc3 Rg1 49. Kd2 Rg2+ 50. Kc3 Rh2 51. Rb8 Rh6 52. Kd2 Rh2+ 53. Ke3 Rxc2 54. Rxb6 Rc3+ 55. Kd2 Rd3+ 56. Ke2 Kd4 57. a5 Rh3 58. Rd6+ Ke5 59. Rb6 Kd4 60. Rd6+ Ke5 61. Rb6 Rh2+ 62. Ke3 Ra2 63. Rb5 Kd5 64. b4 Ra3+ 65. Ke2 Ra2+ 66. Ke3 {[%emt 2:01:07]} 1/2-1/2